[Event "Early-Titled-Tuesday-Blitz-February-06-2024"]
[Site "Chess.com"]
[Date "2024.02.06"]
[Round "2"]
[White "cthulhuuu"]
[Black "Flawless_Fighter"]
[Result "1-0"]
[WhiteElo "2399"]
[BlackElo "2742"]
[TimeControl "180+1"]
[EndTime "8:19:41 PST"]
[Termination "cthulhuuu won by resignation"]

1. e4 {[%clk 0:03:00.2]} 1... c5 {[%clk 0:02:58.9]} 2. Nf3 {[%clk 0:03:00.6]}
2... Nc6 {[%clk 0:02:59.5]} 3. g3 {[%clk 0:03:01]} 3... g6 {[%clk 0:02:57.6]} 4.
Bg2 {[%clk 0:03:01.7]} 4... Bg7 {[%clk 0:02:58.2]} 5. O-O {[%clk 0:03:02.3]}
5... d6 {[%clk 0:02:55.3]} 6. d3 {[%clk 0:03:01.7]} 6... Nf6 {[%clk 0:02:55.8]}
7. Re1 {[%clk 0:03:01.9]} 7... O-O {[%clk 0:02:56.4]} 8. e5 {[%clk 0:03:02.6]}
8... dxe5 {[%clk 0:02:46.9]} 9. Nxe5 {[%clk 0:03:03.5]} 9... Nxe5 {[%clk
0:02:44.1]} 10. Rxe5 {[%clk 0:03:04.4]} 10... Nd7 {[%clk 0:02:31.2]} 11. Re1
{[%clk 0:03:02.1]} 11... Rb8 {[%clk 0:02:27.7]} 12. Nc3 {[%clk 0:03:00.1]} 12...
b6 {[%clk 0:02:26]} 13. h4 {[%clk 0:03:00.2]} 13... Bb7 {[%clk 0:02:25.1]} 14.
Bxb7 {[%clk 0:02:59.5]} 14... Rxb7 {[%clk 0:02:26]} 15. Qf3 {[%clk 0:02:59.6]}
15... Rb8 {[%clk 0:02:23.2]} 16. h5 {[%clk 0:02:59.1]} 16... Ne5 {[%clk
0:02:13.5]} 17. Qe2 {[%clk 0:02:59.1]} 17... Nc6 {[%clk 0:02:05.9]} 18. h6
{[%clk 0:02:55.1]} 18... Bh8 {[%clk 0:02:05]} 19. Ne4 {[%clk 0:02:53.4]} 19...
Qd7 {[%clk 0:02:04]} 20. Bf4 {[%clk 0:02:46.5]} 20... Rbd8 {[%clk 0:02:03.6]}
21. Rab1 {[%clk 0:02:27.5]} 21... Nd4 {[%clk 0:02:02.6]} 22. Qd1 {[%clk
0:02:25]} 22... Qf5 {[%clk 0:01:48.1]} 23. c3 {[%clk 0:02:22.5]} 23... Ne6
{[%clk 0:01:46.1]} 24. Be3 {[%clk 0:02:13.3]} 24... Qd5 {[%clk 0:01:38.8]} 25.
a4 {[%clk 0:02:00]} 25... Qxd3 {[%clk 0:01:35.2]} 26. Qxd3 {[%clk 0:02:00.9]}
26... Rxd3 {[%clk 0:01:34.7]} 27. a5 {[%clk 0:02:01.6]} 27... Rfd8 {[%clk
0:01:31.2]} 28. Ra1 {[%clk 0:01:56.1]} 28... R3d7 {[%clk 0:00:59.3]} 29. axb6
{[%clk 0:01:50.7]} 29... axb6 {[%clk 0:01:00.2]} 30. Ra6 {[%clk 0:01:50.9]}
30... Rb7 {[%clk 0:01:00.2]} 31. Kf1 {[%clk 0:01:37.2]} 31... Kf8 {[%clk
0:00:57.7]} 32. Ke2 {[%clk 0:01:34.3]} 32... f5 {[%clk 0:00:57.3]} 33. Ng5
{[%clk 0:01:28.2]} 33... Nxg5 {[%clk 0:00:57.7]} 34. Bxg5 {[%clk 0:01:29.1]}
34... Kf7 {[%clk 0:00:57.9]} 35. Rd1 {[%clk 0:01:18]} 35... Rxd1 {[%clk
0:00:51.8]} 36. Kxd1 {[%clk 0:01:18.9]} 36... Bf6 {[%clk 0:00:52.5]} 37. f4
{[%clk 0:00:50.6]} 37... Bxg5 {[%clk 0:00:46.9]} 38. fxg5 {[%clk 0:00:51.5]}
38... e5 {[%clk 0:00:47.7]} 39. Ra8 {[%clk 0:00:46.9]} 39... Ke6 {[%clk
0:00:46.3]} 40. Rg8 {[%clk 0:00:38.6]} 40... Rd7+ {[%clk 0:00:35.9]} 41. Ke2
{[%clk 0:00:38.7]} 41... e4 {[%clk 0:00:35.2]} 42. Rb8 {[%clk 0:00:34.7]} 42...
Kd5 {[%clk 0:00:17.3]} 43. Rxb6 {[%clk 0:00:32.7]} 43... Ke5 {[%clk 0:00:14.8]}
44. Rb5 {[%clk 0:00:25.5]} 44... Rc7 {[%clk 0:00:12.1]} 45. b4 {[%clk 0:00:25]}
45... Kd6 {[%clk 0:00:11.3]} 46. bxc5+ {[%clk 0:00:10.9]} 46... Kc6 {[%clk
0:00:08.8]} 47. Ra5 {[%clk 0:00:11]} 47... Rb7 {[%clk 0:00:08.5]} 48. Ke3 {[%clk
0:00:09.6]} 48... Rb3 {[%clk 0:00:08.1]} 49. Ra7 {[%clk 0:00:09.8]} 49... Rxc3+
{[%clk 0:00:07.7]} 50. Kf2 {[%clk 0:00:10.3]} 50... Rf3+ {[%clk 0:00:08]} 51.
Kg2 {[%clk 0:00:10.4]} 51... Rb3 {[%clk 0:00:05.3]} 52. Rxh7 {[%clk 0:00:10.4]}
52... Rb2+ {[%clk 0:00:06]} 53. Kh3 {[%clk 0:00:10.5]} 53... e3 {[%clk
0:00:05.8]} 54. Re7 {[%clk 0:00:10.6]} 54... e2 {[%clk 0:00:05]} 55. h7 {[%clk
0:00:10.1]} 55... Rb1 {[%clk 0:00:05.7]} 56. Kg2 {[%clk 0:00:09.3]} 56... Rb2
{[%clk 0:00:04.8]} 57. Kf2 {[%clk 0:00:04.2]} 57... e1=Q+ {[%clk 0:00:04.6]} 58.
Kxe1 {[%clk 0:00:04.7]} 58... Rh2 {[%clk 0:00:05.5]} 59. Rg7 {[%clk 0:00:04.1]}
59... Kxc5 {[%clk 0:00:05.7]} 60. Kf1 {[%clk 0:00:03]} 60... Kd5 {[%clk
0:00:06.1]} 61. Kg1 {[%clk 0:00:03.4]} 61... Rh5 {[%clk 0:00:06.7]} 62. Kg2
{[%clk 0:00:03.1]} 62... Ke5 {[%clk 0:00:06.3]} 63. Kf3 {[%clk 0:00:03.2]} 63...
Rh1 {[%clk 0:00:06.3]} 64. Rxg6 {[%clk 0:00:03.2]} 64... Rxh7 {[%clk 0:00:05.9]}
65. Rg8 {[%clk 0:00:03.8]} 65... Ra7 {[%clk 0:00:04.2]} 66. Re8+ {[%clk
0:00:04.2]} 66... Kd6 {[%clk 0:00:04.6]} 67. Kf4 {[%clk 0:00:04.6]} 67... Ra5
{[%clk 0:00:02.8]} 68. g6 {[%clk 0:00:04.6]} 68... Kd7 {[%clk 0:00:03.2]} 69. g7
{[%clk 0:00:04.9]} 69... Ra4+ {[%clk 0:00:03.7]} 70. Kxf5 {[%clk 0:00:04.9]}
70... Ra5+ {[%clk 0:00:04.4]} 71. Kf6 {[%clk 0:00:04.5]} 71... Ra6+ {[%clk
0:00:04.6]} 72. Kf7 {[%clk 0:00:04.9]} 72... Ra3 {[%clk 0:00:03.1]} 73. g8=Q
{[%clk 0:00:05.2]} 73... Rf3+ {[%clk 0:00:03.7]} 74. Kg7 {[%clk 0:00:05.2]}
74... Rxg3+ {[%clk 0:00:04.6]} 75. Kh7 {[%clk 0:00:05.5]} 75... Rh3+ {[%clk
0:00:05]} 76. Kg6 {[%clk 0:00:06]} 76... Rg3+ {[%clk 0:00:05.9]} 77. Kf5 {[%clk
0:00:06.3]} 77... Rxg8 {[%clk 0:00:05.3]} 78. Rxg8 {[%clk 0:00:06.6]} 1-0

[Event "Early-Titled-Tuesday-Blitz-February-06-2024"]
[Site "Chess.com"]
[Date "2024.02.06"]
[Round "2"]
[White "ljm509"]
[Black "Happy1712Drummer"]
[Result "0-1"]
[WhiteElo "1968"]
[BlackElo "2414"]
[TimeControl "180+1"]
[EndTime "8:19:46 PST"]
[Termination "Happy1712Drummer won on time"]

1. e4 {[%clk 0:02:51.2]} 1... c5 {[%clk 0:02:59]} 2. Nf3 {[%clk 0:02:50.8]} 2...
e6 {[%clk 0:02:57.8]} 3. d4 {[%clk 0:02:50.9]} 3... cxd4 {[%clk 0:02:58.3]} 4.
Nxd4 {[%clk 0:02:51.8]} 4... Nf6 {[%clk 0:02:58.9]} 5. Nc3 {[%clk 0:02:52.2]}
5... Nc6 {[%clk 0:02:58.8]} 6. Be3 {[%clk 0:02:49.5]} 6... Bb4 {[%clk
0:02:57.4]} 7. Nxc6 {[%clk 0:02:49.4]} 7... bxc6 {[%clk 0:02:57.2]} 8. Bd3
{[%clk 0:02:49.6]} 8... d5 {[%clk 0:02:51.6]} 9. e5 {[%clk 0:02:30]} 9... d4
{[%clk 0:02:34]} 10. Bd2 {[%clk 0:02:14.8]} 10... dxc3 {[%clk 0:02:30.8]} 11.
bxc3 {[%clk 0:02:15.7]} 11... Be7 {[%clk 0:02:21.9]} 12. exf6 {[%clk 0:02:14.1]}
12... Bxf6 {[%clk 0:02:22.8]} 13. O-O {[%clk 0:02:14.5]} 13... O-O {[%clk
0:02:20]} 14. Qf3 {[%clk 0:02:14.3]} 14... Rb8 {[%clk 0:01:30.5]} 15. Rab1
{[%clk 0:01:58]} 15... Rxb1 {[%clk 0:01:25.7]} 16. Rxb1 {[%clk 0:01:57.3]} 16...
Qd5 {[%clk 0:01:23.2]} 17. Qh3 {[%clk 0:01:54.8]} 17... g6 {[%clk 0:01:23.1]}
18. c4 {[%clk 0:01:54.1]} 18... Qe5 {[%clk 0:01:11.3]} 19. Be3 {[%clk
0:01:46.2]} 19... Qa5 {[%clk 0:00:45.1]} 20. Qf3 {[%clk 0:01:36.9]} 20... Qxa2
{[%clk 0:00:37.8]} 21. Rd1 {[%clk 0:01:13.1]} 21... Bg7 {[%clk 0:00:35.7]} 22.
Qxc6 {[%clk 0:01:12.8]} 22... Ba6 {[%clk 0:00:33.8]} 23. Bxa7 {[%clk 0:01:10]}
23... Rc8 {[%clk 0:00:33.6]} 24. Qd7 {[%clk 0:01:03.9]} 24... Bf6 {[%clk
0:00:26.4]} 25. Be3 {[%clk 0:01:01.1]} 25... Rd8 {[%clk 0:00:24.1]} 26. Qa7
{[%clk 0:00:57.8]} 26... Bxc4 {[%clk 0:00:16.6]} 27. Qxa2 {[%clk 0:00:55.5]}
27... Bxa2 {[%clk 0:00:17.5]} 28. h3 {[%clk 0:00:54.2]} 28... Rc8 {[%clk
0:00:16]} 29. Kf1 {[%clk 0:00:54.1]} 29... Kg7 {[%clk 0:00:16]} 30. Ke2 {[%clk
0:00:53.9]} 30... Bc4 {[%clk 0:00:16.1]} 31. Rc1 {[%clk 0:00:48.8]} 31... Be5
{[%clk 0:00:10.1]} 32. f4 {[%clk 0:00:46.1]} 32... Bd6 {[%clk 0:00:09]} 33. Bd4+
{[%clk 0:00:45.8]} 33... Kf8 {[%clk 0:00:09.3]} 34. g3 {[%clk 0:00:45.4]} 34...
Ke7 {[%clk 0:00:09.5]} 35. Rb1 {[%clk 0:00:41.6]} 35... Rc7 {[%clk 0:00:07.7]}
36. Bxc4 {[%clk 0:00:39.6]} 36... Rxc4 {[%clk 0:00:08.4]} 37. Rb7+ {[%clk
0:00:38.7]} 37... Rc7 {[%clk 0:00:08.6]} 38. Rxc7+ {[%clk 0:00:36.9]} 38... Bxc7
{[%clk 0:00:09.5]} 39. Kd3 {[%clk 0:00:37.1]} 39... Kd7 {[%clk 0:00:09]} 40. c4
{[%clk 0:00:37]} 40... Kc6 {[%clk 0:00:09.3]} 41. Ke4 {[%clk 0:00:36.9]} 41...
Bd6 {[%clk 0:00:09.4]} 42. g4 {[%clk 0:00:32]} 42... f5+ {[%clk 0:00:08.5]} 43.
gxf5 {[%clk 0:00:32]} 43... exf5+ {[%clk 0:00:09.4]} 44. Ke3 {[%clk 0:00:30.4]}
44... Bc7 {[%clk 0:00:09.5]} 45. Be5 {[%clk 0:00:20.9]} 45... Bb6+ {[%clk
0:00:09]} 46. Kd3 {[%clk 0:00:20.3]} 46... Bg1 {[%clk 0:00:07.5]} 47. Bd4 {[%clk
0:00:16.8]} 47... Bh2 {[%clk 0:00:07.2]} 48. Be5 {[%clk 0:00:16.8]} 48... Bg3
{[%clk 0:00:07.6]} 49. Bb8 {[%clk 0:00:15.6]} 49... Bf2 {[%clk 0:00:06.7]} 50.
Be5 {[%clk 0:00:15.2]} 50... Bc5 {[%clk 0:00:06.4]} 51. Bd4 {[%clk 0:00:14.8]}
51... Bd6 {[%clk 0:00:06.4]} 52. Be5 {[%clk 0:00:15.3]} 52... Be7 {[%clk
0:00:06.9]} 53. Bb8 {[%clk 0:00:14.5]} 53... Kb7 {[%clk 0:00:07.4]} 54. Be5
{[%clk 0:00:13.8]} 54... Kc6 {[%clk 0:00:05.9]} 55. Kd4 {[%clk 0:00:13.7]} 55...
Bc5+ {[%clk 0:00:05.8]} 56. Kd3 {[%clk 0:00:14]} 56... h6 {[%clk 0:00:04.2]} 57.
Bg7 {[%clk 0:00:12.3]} 57... h5 {[%clk 0:00:04.7]} 58. Bf6 {[%clk 0:00:12]}
58... Bd6 {[%clk 0:00:04.9]} 59. Be5 {[%clk 0:00:12]} 59... Be7 {[%clk
0:00:02.6]} 60. Kd4 {[%clk 0:00:11]} 60... Bc5+ {[%clk 0:00:02.6]} 61. Kd3
{[%clk 0:00:11.3]} 61... Be7 {[%clk 0:00:01.5]} 62. Bd4 {[%clk 0:00:11]} 62...
Bd8 {[%clk 0:00:02]} 63. Be5 {[%clk 0:00:10.8]} 63... Bc7 {[%clk 0:00:02.5]} 64.
Bxc7 {[%clk 0:00:10.5]} 64... Kxc7 {[%clk 0:00:03.1]} 65. Kd4 {[%clk 0:00:11.4]}
65... Kd6 {[%clk 0:00:03.1]} 66. c5+ {[%clk 0:00:11.7]} 66... Kc6 {[%clk
0:00:03.7]} 67. Ke5 {[%clk 0:00:12.2]} 67... Kxc5 {[%clk 0:00:04.3]} 68. Kf6
{[%clk 0:00:12.7]} 68... Kd4 {[%clk 0:00:04.4]} 69. Kxg6 {[%clk 0:00:12.9]}
69... Ke4 {[%clk 0:00:04.9]} 70. Kg5 {[%clk 0:00:13]} 70... h4 {[%clk
0:00:05.1]} 71. Kxh4 {[%clk 0:00:10.5]} 71... Kxf4 {[%clk 0:00:05.6]} 72. Kh5
{[%clk 0:00:08.3]} 72... Kg3 {[%clk 0:00:02.8]} 73. Kg5 {[%clk 0:00:04.8]} 73...
f4 {[%clk 0:00:02.9]} 74. h4 {[%clk 0:00:05.7]} 74... f3 {[%clk 0:00:03.6]} 75.
h5 {[%clk 0:00:06.2]} 75... f2 {[%clk 0:00:04.3]} 76. h6 {[%clk 0:00:06.9]}
76... f1=Q {[%clk 0:00:04.9]} 77. Kg6 {[%clk 0:00:07.8]} 77... Qf8 {[%clk
0:00:05.1]} 78. Kh7 {[%clk 0:00:08.3]} 78... Qf7+ {[%clk 0:00:05.5]} 79. Kh8
{[%clk 0:00:08.3]} 79... Qe8+ {[%clk 0:00:05.5]} 80. Kh7 {[%clk 0:00:08]} 80...
Qh5 {[%clk 0:00:04.4]} 81. Kg7 {[%clk 0:00:07.8]} 81... Qg5+ {[%clk 0:00:04.9]}
82. Kh7 {[%clk 0:00:07.5]} 82... Qf6 {[%clk 0:00:04.4]} 0-1

[Event "Early-Titled-Tuesday-Blitz-February-06-2024"]
[Site "Chess.com"]
[Date "2024.02.06"]
[Round "2"]
[White "Zheenbekov86"]
[Black "lynette2015"]
[Result "0-1"]
[WhiteElo "2433"]
[BlackElo "2195"]
[TimeControl "180+1"]
[EndTime "8:19:50 PST"]
[Termination "lynette2015 won on time"]

1. Nf3 {[%clk 0:02:56.8]} 1... g6 {[%clk 0:02:57.9]} 2. d4 {[%clk 0:02:56.5]}
2... Bg7 {[%clk 0:02:57]} 3. c4 {[%clk 0:02:56.8]} 3... Nf6 {[%clk 0:02:54.2]}
4. Nc3 {[%clk 0:02:57.2]} 4... b6 {[%clk 0:02:53.6]} 5. g3 {[%clk 0:02:56.8]}
5... Bb7 {[%clk 0:02:53.1]} 6. Bg2 {[%clk 0:02:57.3]} 6... d5 {[%clk 0:02:52.9]}
7. Ne5 {[%clk 0:02:53.1]} 7... O-O {[%clk 0:02:51]} 8. O-O {[%clk 0:02:50.7]}
8... c6 {[%clk 0:02:48.1]} 9. Qc2 {[%clk 0:02:39.3]} 9... Nbd7 {[%clk
0:02:45.6]} 10. Rd1 {[%clk 0:02:39.1]} 10... Rc8 {[%clk 0:02:45.1]} 11. Qa4
{[%clk 0:02:18.2]} 11... Qc7 {[%clk 0:02:42]} 12. Bf4 {[%clk 0:02:17.3]} 12...
Nxe5 {[%clk 0:02:10.8]} 13. Bxe5 {[%clk 0:02:01.3]} 13... Qd7 {[%clk 0:02:02]}
14. Bxf6 {[%clk 0:01:56.5]} 14... Bxf6 {[%clk 0:01:55.6]} 15. cxd5 {[%clk
0:01:55.9]} 15... b5 {[%clk 0:01:55.7]} 16. dxc6 {[%clk 0:01:40.4]} 16... Bxc6
{[%clk 0:01:53.5]} 17. Bxc6 {[%clk 0:01:39]} 17... Qxc6 {[%clk 0:01:39.4]} 18.
Qxb5 {[%clk 0:01:38.3]} 18... Qxb5 {[%clk 0:01:35.5]} 19. Nxb5 {[%clk
0:01:37.8]} 19... Rb8 {[%clk 0:01:36.2]} 20. Nxa7 {[%clk 0:01:32.2]} 20... Rxb2
{[%clk 0:01:35.8]} 21. e3 {[%clk 0:01:24.1]} 21... Ra8 {[%clk 0:01:35.4]} 22.
Nc6 {[%clk 0:01:21.2]} 22... Ra6 {[%clk 0:01:31.9]} 23. Rdc1 {[%clk 0:01:12.7]}
23... Raxa2 {[%clk 0:01:29.1]} 24. Rxa2 {[%clk 0:01:12.3]} 24... Rxa2 {[%clk
0:01:29]} 25. h4 {[%clk 0:01:11.7]} 25... h5 {[%clk 0:01:28.7]} 26. Kg2 {[%clk
0:01:09.5]} 26... Kg7 {[%clk 0:01:28.4]} 27. Kf3 {[%clk 0:01:09.1]} 27... e6
{[%clk 0:01:25.6]} 28. Rb1 {[%clk 0:00:58.8]} 28... Ra6 {[%clk 0:01:22.6]} 29.
Rc1 {[%clk 0:00:53.8]} 29... Rb6 {[%clk 0:01:20.1]} 30. e4 {[%clk 0:00:50.2]}
30... Rb3+ {[%clk 0:01:17.7]} 31. Kg2 {[%clk 0:00:50.1]} 31... Kh7 {[%clk
0:01:05.9]} 32. Rd1 {[%clk 0:00:34.8]} 32... Rb7 {[%clk 0:00:55.6]} 33. e5
{[%clk 0:00:26.9]} 33... Bg7 {[%clk 0:00:53.9]} 34. d5 {[%clk 0:00:27]} 34...
exd5 {[%clk 0:00:52.5]} 35. Rxd5 {[%clk 0:00:26.8]} 35... Rc7 {[%clk 0:00:51.7]}
36. Rd6 {[%clk 0:00:26.6]} 36... Bf8 {[%clk 0:00:50.5]} 37. Rf6 {[%clk
0:00:24.4]} 37... Kg7 {[%clk 0:00:49.1]} 38. f4 {[%clk 0:00:23.4]} 38... Rd7
{[%clk 0:00:41.8]} 39. Kf3 {[%clk 0:00:20.6]} 39... Rd3+ {[%clk 0:00:40.2]} 40.
Kf2 {[%clk 0:00:20.4]} 40... Bc5+ {[%clk 0:00:39.2]} 41. Kg2 {[%clk 0:00:19.6]}
41... Rd2+ {[%clk 0:00:39.1]} 42. Kf3 {[%clk 0:00:18.5]} 42... Rd3+ {[%clk
0:00:29.3]} 43. Kg2 {[%clk 0:00:17.6]} 43... Be3 {[%clk 0:00:19.4]} 44. Kf1
{[%clk 0:00:14.1]} 44... Bc5 {[%clk 0:00:14.2]} 45. Ke2 {[%clk 0:00:13.9]} 45...
Rxg3 {[%clk 0:00:13.6]} 46. Nd8 {[%clk 0:00:13.4]} 46... Rg4 {[%clk 0:00:12]}
47. Rxf7+ {[%clk 0:00:12]} 47... Kg8 {[%clk 0:00:12.4]} 48. Rf6 {[%clk
0:00:10.4]} 48... Be7 {[%clk 0:00:12]} 49. Re6 {[%clk 0:00:08.4]} 49... Bxd8
{[%clk 0:00:11.7]} 50. Re8+ {[%clk 0:00:09]} 50... Kf7 {[%clk 0:00:12.3]} 51.
Rxd8 {[%clk 0:00:09.8]} 51... Rxf4 {[%clk 0:00:12.7]} 52. Ke3 {[%clk 0:00:08.9]}
52... Rxh4 {[%clk 0:00:12.7]} 53. Rd6 {[%clk 0:00:07.7]} 53... g5 {[%clk
0:00:12.4]} 54. Rf6+ {[%clk 0:00:07.6]} 54... Ke7 {[%clk 0:00:12.5]} 55. Rg6
{[%clk 0:00:07.8]} 55... Rg4 {[%clk 0:00:12.6]} 56. Rh6 {[%clk 0:00:07.2]} 56...
h4 {[%clk 0:00:12.5]} 57. Kd3 {[%clk 0:00:07.3]} 57... Rg3+ {[%clk 0:00:10.6]}
58. Ke4 {[%clk 0:00:07.4]} 58... h3 {[%clk 0:00:10.7]} 59. Kf5 {[%clk
0:00:07.7]} 59... g4 {[%clk 0:00:08.6]} 60. Rh7+ {[%clk 0:00:07.8]} 60... Ke8
{[%clk 0:00:07.3]} 61. Ke6 {[%clk 0:00:07.9]} 61... Kf8 {[%clk 0:00:07.5]} 62.
Rh8+ {[%clk 0:00:07.4]} 62... Kg7 {[%clk 0:00:07.7]} 63. Rh4 {[%clk 0:00:08.1]}
63... Kg6 {[%clk 0:00:07]} 64. Ke7 {[%clk 0:00:08.1]} 64... Kg5 {[%clk
0:00:07.1]} 65. Rh8 {[%clk 0:00:07.9]} 65... Re3 {[%clk 0:00:07.3]} 66. e6
{[%clk 0:00:07.5]} 66... Kf4 {[%clk 0:00:07.4]} 67. Kf6 {[%clk 0:00:06.5]} 67...
Kg3 {[%clk 0:00:07]} 68. e7 {[%clk 0:00:05.1]} 68... h2 {[%clk 0:00:07]} 69. Rh5
{[%clk 0:00:05.3]} 69... Rxe7 {[%clk 0:00:06]} 70. Kxe7 {[%clk 0:00:05.4]} 70...
Kg2 {[%clk 0:00:06.6]} 71. Kf6 {[%clk 0:00:05.6]} 71... g3 {[%clk 0:00:06.8]}
72. Kf5 {[%clk 0:00:06]} 72... h1=Q {[%clk 0:00:05.9]} 0-1

[Event "Early-Titled-Tuesday-Blitz-February-06-2024"]
[Site "Chess.com"]
[Date "2024.02.06"]
[Round "2"]
[White "vi_pranav"]
[Black "Dacean99"]
[Result "1-0"]
[WhiteElo "3051"]
[BlackElo "2653"]
[TimeControl "180+1"]
[EndTime "8:20:09 PST"]
[Termination "vi_pranav won by checkmate"]

1. e4 {[%clk 0:03:00.9]} 1... c5 {[%clk 0:02:59.9]} 2. Nf3 {[%clk 0:03:00.9]}
2... d6 {[%clk 0:03:00.3]} 3. Bb5+ {[%clk 0:02:59.6]} 3... Nd7 {[%clk
0:02:59.2]} 4. c4 {[%clk 0:02:57.4]} 4... g6 {[%clk 0:02:53.8]} 5. Nc3 {[%clk
0:02:57.3]} 5... Bg7 {[%clk 0:02:53.5]} 6. O-O {[%clk 0:02:57.5]} 6... Nf6
{[%clk 0:02:53.8]} 7. d4 {[%clk 0:02:57.9]} 7... cxd4 {[%clk 0:02:53.5]} 8. Nxd4
{[%clk 0:02:58.8]} 8... O-O {[%clk 0:02:53.8]} 9. Bxd7 {[%clk 0:02:53.9]} 9...
Bxd7 {[%clk 0:02:52.5]} 10. Qd3 {[%clk 0:02:53.5]} 10... Rc8 {[%clk 0:02:52.6]}
11. b3 {[%clk 0:02:50.3]} 11... a6 {[%clk 0:02:46.1]} 12. a4 {[%clk 0:02:49.9]}
12... Qa5 {[%clk 0:02:43.6]} 13. h3 {[%clk 0:02:47.6]} 13... b5 {[%clk
0:02:32.7]} 14. Be3 {[%clk 0:02:05.8]} 14... bxc4 {[%clk 0:02:32]} 15. bxc4
{[%clk 0:02:06.7]} 15... Qc7 {[%clk 0:02:28.4]} 16. Nd5 {[%clk 0:02:03.8]} 16...
Nxd5 {[%clk 0:02:27.2]} 17. cxd5 {[%clk 0:02:04.6]} 17... Qc4 {[%clk 0:02:27]}
18. Qd1 {[%clk 0:02:00.2]} 18... e6 {[%clk 0:01:34.3]} 19. dxe6 {[%clk
0:01:56.7]} 19... fxe6 {[%clk 0:01:35.2]} 20. a5 {[%clk 0:01:50.9]} 20... d5
{[%clk 0:01:19.8]} 21. Rc1 {[%clk 0:01:39.4]} 21... Qa2 {[%clk 0:01:15.4]} 22.
Ra1 {[%clk 0:01:18]} 22... Qc4 {[%clk 0:01:13.7]} 23. Rc1 {[%clk 0:01:17.8]}
23... Qa2 {[%clk 0:01:13.2]} 24. exd5 {[%clk 0:01:16.3]} 24... Qxd5 {[%clk
0:01:08.9]} 25. Nf3 {[%clk 0:01:02]} 25... Bb5 {[%clk 0:01:03]} 26. Re1 {[%clk
0:00:55.3]} 26... Bb2 {[%clk 0:00:42.4]} 27. Rxc8 {[%clk 0:00:45.2]} 27... Rxc8
{[%clk 0:00:43.3]} 28. Qb1 {[%clk 0:00:44.7]} 28... Bg7 {[%clk 0:00:23.8]} 29.
Rd1 {[%clk 0:00:43.4]} 29... Qf5 {[%clk 0:00:20.4]} 30. Qa2 {[%clk 0:00:38.7]}
30... Bc4 {[%clk 0:00:19.7]} 31. Qd2 {[%clk 0:00:35.7]} 31... Bd5 {[%clk
0:00:19.1]} 32. Nd4 {[%clk 0:00:34.4]} 32... Qe4 {[%clk 0:00:17]} 33. f3 {[%clk
0:00:33.4]} 33... Qe5 {[%clk 0:00:17.4]} 34. Ne2 {[%clk 0:00:23.7]} 34... h5
{[%clk 0:00:12]} 35. Bd4 {[%clk 0:00:21.8]} 35... Qf5 {[%clk 0:00:10.5]} 36.
Bxg7 {[%clk 0:00:21.6]} 36... Kxg7 {[%clk 0:00:11.4]} 37. Nd4 {[%clk 0:00:21.2]}
37... Qf6 {[%clk 0:00:10.3]} 38. Ne2 {[%clk 0:00:19.4]} 38... Rc5 {[%clk
0:00:09.9]} 39. Qe3 {[%clk 0:00:17.8]} 39... Rb5 {[%clk 0:00:09.3]} 40. Qa7+
{[%clk 0:00:14.6]} 40... Qf7 {[%clk 0:00:04]} 41. Qxa6 {[%clk 0:00:13.7]} 41...
Bc4 {[%clk 0:00:04.5]} 42. Nc3 {[%clk 0:00:10.2]} 42... Rc5 {[%clk 0:00:05]} 43.
Qd6 {[%clk 0:00:10.1]} 43... Rxa5 {[%clk 0:00:04.8]} 44. Qd4+ {[%clk 0:00:10.6]}
44... e5 {[%clk 0:00:04.9]} 45. Qb6 {[%clk 0:00:10.8]} 45... Ra3 {[%clk
0:00:04.5]} 46. Ne4 {[%clk 0:00:10.7]} 46... Qf8 {[%clk 0:00:04.2]} 47. Rd7+
{[%clk 0:00:09.9]} 47... Kh6 {[%clk 0:00:04.2]} 48. Qb2 {[%clk 0:00:09.9]} 48...
Re3 {[%clk 0:00:03.7]} 49. Qd2 {[%clk 0:00:09.7]} 49... Qf4 {[%clk 0:00:04.3]}
50. h4 {[%clk 0:00:06.1]} 50... Rxe4 {[%clk 0:00:04.4]} 51. fxe4 {[%clk
0:00:06]} 51... Qxd2 {[%clk 0:00:04.2]} 52. Rxd2 {[%clk 0:00:06.9]} 52... g5
{[%clk 0:00:04.6]} 53. g3 {[%clk 0:00:07.5]} 53... gxh4 {[%clk 0:00:04.5]} 54.
gxh4 {[%clk 0:00:08.4]} 54... Kg6 {[%clk 0:00:04.3]} 55. Kf2 {[%clk 0:00:09]}
55... Kf6 {[%clk 0:00:04.6]} 56. Ke3 {[%clk 0:00:09.9]} 56... Be6 {[%clk
0:00:03.1]} 57. Rd6 {[%clk 0:00:09.5]} 57... Ke7 {[%clk 0:00:03.1]} 58. Ra6
{[%clk 0:00:10.4]} 58... Kf6 {[%clk 0:00:03.4]} 59. Ra5 {[%clk 0:00:09.7]} 59...
Bg4 {[%clk 0:00:02.8]} 60. Kd3 {[%clk 0:00:09.6]} 60... Be6 {[%clk 0:00:03.7]}
61. Kc3 {[%clk 0:00:08]} 61... Bg4 {[%clk 0:00:03.9]} 62. Kc4 {[%clk 0:00:08]}
62... Be6+ {[%clk 0:00:04.4]} 63. Kc5 {[%clk 0:00:08.3]} 63... Ke7 {[%clk
0:00:04.8]} 64. Ra7+ {[%clk 0:00:08.1]} 64... Kf6 {[%clk 0:00:04.5]} 65. Kd6
{[%clk 0:00:08.6]} 65... Bg4 {[%clk 0:00:04.4]} 66. Re7 {[%clk 0:00:08.7]} 66...
Bf3 {[%clk 0:00:03.8]} 67. Rxe5 {[%clk 0:00:09.6]} 67... Kg6 {[%clk 0:00:04.3]}
68. Kd5 {[%clk 0:00:09.7]} 68... Bg4 {[%clk 0:00:03.8]} 69. Kd4 {[%clk
0:00:10.1]} 69... Kf6 {[%clk 0:00:04.3]} 70. Rg5 {[%clk 0:00:11]} 70... Bf3
{[%clk 0:00:04]} 71. Ke3 {[%clk 0:00:11.2]} 71... Bg4 {[%clk 0:00:03.6]} 72. Kf4
{[%clk 0:00:11.5]} 72... Be2 {[%clk 0:00:03.3]} 73. e5+ {[%clk 0:00:12.1]} 73...
Ke6 {[%clk 0:00:03.7]} 74. Rg6+ {[%clk 0:00:12.2]} 74... Kf7 {[%clk 0:00:04.4]}
75. Rf6+ {[%clk 0:00:11.8]} 75... Ke7 {[%clk 0:00:05.3]} 76. Kg5 {[%clk
0:00:11.3]} 76... Kd7 {[%clk 0:00:04.8]} 77. Rh6 {[%clk 0:00:11.2]} 77... Ke7
{[%clk 0:00:04.6]} 78. Rxh5 {[%clk 0:00:08.9]} 78... Ke6 {[%clk 0:00:05]} 79.
Rh8 {[%clk 0:00:08.9]} 79... Bd3 {[%clk 0:00:03.8]} 80. Kf4 {[%clk 0:00:08]}
80... Kf7 {[%clk 0:00:03.4]} 81. Rh6 {[%clk 0:00:08.8]} 81... Kg7 {[%clk
0:00:03.5]} 82. Rf6 {[%clk 0:00:09.6]} 82... Bg6 {[%clk 0:00:03.7]} 83. Kg5
{[%clk 0:00:10.5]} 83... Bf7 {[%clk 0:00:04.1]} 84. h5 {[%clk 0:00:10.7]} 84...
Bg8 {[%clk 0:00:05]} 85. h6+ {[%clk 0:00:11.2]} 85... Kh8 {[%clk 0:00:05.9]} 86.
e6 {[%clk 0:00:11.2]} 86... Kh7 {[%clk 0:00:06]} 87. e7 {[%clk 0:00:11.6]} 87...
Kh8 {[%clk 0:00:05.6]} 88. e8=Q {[%clk 0:00:11.8]} 88... Kh7 {[%clk 0:00:05.9]}
89. Rg6 {[%clk 0:00:09.7]} 89... Kh8 {[%clk 0:00:06.8]} 90. Qxg8# {[%clk
0:00:09]} 1-0